bitfinex-derivatives/quotes_BTCF0:USTF0_20250828
["timestamp","ask_amount","ask_price","bid_price","bid_amount"]
[1756375639649,0.16562676,113070.0,113060.0,0.8597942]
[1756375640047,0.16562676,113070.0,113060.0,0.4989942]
[1756375640250,0.16564404,113070.0,113060.0,0.4989942]
[1756375641148,0.16564404,113070.0,113060.0,0.87106818]
[1756375643744,0.53771802,113070.0,113060.0,0.4646642]
[1756375644048,0.53771802,113070.0,113060.0,0.4989942]
[1756375645543,0.16564404,113070.0,113060.0,0.4989942]
[1756375663763,0.16564404,113070.0,113060.0,0.87106818]
[1756375664670,0.16564404,113070.0,113060.0,0.4989942]
[1756375666073,0.96908404,113070.0,113060.0,0.4989942]
[1756375666975,0.94032404,113070.0,113060.0,0.4989942]
[1756375667768,0.96936404,113070.0,113060.0,0.4989942]
[1756375668174,0.96936404,113070.0,113060.0,0.87106818]
[1756375668873,0.96936404,113070.0,113060.0,0.4989942]
[1756375670977,0.96936404,113070.0,113060.0,0.8597942]
[1756375671276,1.38779917,113070.0,113060.0,1.27822933]
[1756375672874,1.38779917,113070.0,113060.0,0.8597942]
[1756375673081,1.38779917,113070.0,113060.0,0.4989942]
[1756375673281,1.38779917,113070.0,113060.0,0.91742933]
[1756375674282,0.96936404,113070.0,113060.0,0.91742933]
[1756375674481,1.38779917,113070.0,113060.0,0.91742933]
[1756375675382,1.74859917,113070.0,113060.0,0.91742933]
[1756375676583,1.74859917,113070.0,113060.0,0.4989942]
[1756375676880,1.74859917,113070.0,113060.0,0.91742933]
[1756375678177,1.74859917,113070.0,113060.0,0.4989942]
[1756375679183,1.33016404,113070.0,113060.0,0.4989942]
[1756375679377,1.74859917,113070.0,113060.0,0.4758442]
[1756375679678,1.74859917,113070.0,113060.0,0.4996942]
[1756375679877,2.1670343,113070.0,113060.0,0.32458]
[1756375680078,2.7570343,113070.0,113060.0,0.268]
[1756375681380,0.05601,113060.0,113050.0,0.46125766]
[1756375681684,0.94314917,113060.0,113050.0,0.51781766]
[1756375682772,0.94314917,113060.0,113050.0,0.21672766]
[1756375682981,0.94314917,113060.0,113050.0,0.24981766]
[1756375683383,0.89678846,113060.0,113050.0,0.24981766]
[1756375683585,0.89678846,113060.0,113050.0,0.25181766]
[1756375684587,1.20678846,113060.0,113050.0,0.08649]
[1756375684784,0.08505,113050.0,113030.0,0.02793]
[1756375684983,0.1455,113030.0,113020.0,0.12981985]
[1756375685184,0.90021846,113030.0,113020.0,0.16258985]
[1756375685386,1.28021846,113030.0,113020.0,0.10596985]
[1756375685589,0.90021846,113030.0,113020.0,0.10596985]
[1756375686290,0.97119428,113030.0,113020.0,0.02604985]
[1756375686791,0.90021846,113030.0,113020.0,0.02604985]
[1756375687891,0.90021846,113030.0,113020.0,0.02904985]
[1756375688991,0.52814404,113030.0,113020.0,0.02904985]
[1756375689186,0.90021846,113030.0,113020.0,0.02904985]
[1756375689386,0.90021846,113030.0,113020.0,0.12794985]
[1756375690191,0.90021846,113030.0,113020.0,0.05206985]
[1756375690491,0.90021846,113030.0,113020.0,0.02904985]
[1756375691591,0.96949593,113030.0,113020.0,0.02904985]
[1756375699990,1.27949593,113030.0,113020.0,0.02904985]
[1756375700196,1.32719391,113030.0,113020.0,0.02904985]
[1756375701901,0.95511949,113030.0,113020.0,0.02904985]
[1756375702393,1.32719391,113030.0,113020.0,0.02904985]
[1756375707197,1.52949593,113030.0,113020.0,0.00404985]
[1756375707401,0.08589,113020.0,113000.0,0.0517]
[1756375707604,2.04272442,113010.0,112990.0,0.08447]
[1756375707896,0.87708442,113000.0,112990.0,0.47246]
[1756375708095,0.89892846,113000.0,112990.0,0.47246]
[1756375709100,0.89892846,113000.0,112990.0,0.43969]
[1756375709295,0.89892846,113000.0,112990.0,0.47246]
[1756375709598,0.89992846,113000.0,112990.0,0.47246]
[1756375709799,0.89592846,113000.0,112990.0,0.47246]
[1756375710205,0.90462414,113000.0,112990.0,0.47246]
[1756375710404,0.90462414,113000.0,112990.0,0.14246]
[1756375710704,0.90462414,113000.0,112990.0,0.10969]
[1756375711004,0.90462414,113000.0,112990.0,0.08523]
[1756375712106,0.90462414,113000.0,112990.0,0.118]
[1756375712503,0.90462414,113000.0,112990.0,0.14246]
[1756375715508,0.90362414,113000.0,112990.0,0.14246]
[1756375715802,0.90362414,113000.0,112990.0,0.14346]
[1756375716306,0.90562414,113000.0,112990.0,0.14246]
[1756375716508,0.53354972,113000.0,112990.0,0.14246]
[1756375716704,0.90562414,113000.0,112990.0,0.14246]
[1756375717010,0.90462414,113000.0,112990.0,0.14246]
[1756375717314,0.90662414,113000.0,112990.0,0.14246]
[1756375717908,0.90562414,113000.0,112990.0,0.14246]
[1756375718407,0.90462414,113000.0,112990.0,0.14246]
[1756375718609,0.90462414,113000.0,112990.0,0.14346]
[1756375719105,0.90562414,113000.0,112990.0,0.14246]
[1756375719408,0.90662414,113000.0,112990.0,0.14246]
[1756375721812,0.90662414,113000.0,112990.0,0.03889]
[1756375722009,1.26662414,113000.0,112990.0,0.03889]
[1756375722207,1.26662414,113000.0,112990.0,0.01587]
[1756375722411,1.26562414,113000.0,112990.0,0.01587]
[1756375722913,1.26562414,113000.0,112980.0,0.44754029]
[1756375723113,0.94976,112990.0,112980.0,0.58520029]
[1756375723314,1.34367846,112990.0,112980.0,0.58520029]
[1756375723816,1.70447846,112990.0,112980.0,0.58520029]
[1756375724813,1.70447846,112990.0,112980.0,0.58620029]
[1756375725912,1.70547846,112990.0,112980.0,0.58520029]
[1756375726110,1.70547846,112990.0,112980.0,0.58620029]
[1756375728304,1.33340404,112990.0,112980.0,0.58620029]
[1756375728510,1.70547846,112990.0,112980.0,0.58620029]
[1756375728714,1.70547846,112990.0,112980.0,0.67470749]
[1756375729415,1.75248199,112990.0,112980.0,0.67470749]
[1756375733819,1.75248199,112990.0,112980.0,1.09378544]
[1756375734521,1.33340404,112990.0,112980.0,1.09378544]
[1756375734719,1.75248199,112990.0,112980.0,1.09378544]
[1756375740722,0.13290404,112990.0,112980.0,2.48714339]
[1756375740924,0.001,112990.0,112980.0,3.17794339]
[1756375741119,0.41753,113010.0,113000.0,0.2337315]
[1756375741319,0.41753,113010.0,113000.0,0.65280945]
[1756375741320,0.94677044,113010.0,113000.0,0.65280945]
[1756375741623,0.95585016,113010.0,113000.0,0.65280945]
[1756375742026,0.52769249,113010.0,113000.0,0.65280945]
[1756375742525,0.94677044,113010.0,113000.0,0.65280945]
[1756375742729,0.52769249,113010.0,113000.0,0.65280945]
[1756375742927,0.52769249,113010.0,113000.0,0.67280945]
[1756375743325,0.52769249,113010.0,113000.0,0.64611932]
[1756375743526,0.52969249,113010.0,113000.0,0.64611932]
[1756375744228,0.52769249,113010.0,113000.0,0.64611932]
[1756375744422,0.52769249,113010.0,113000.0,0.64711932]
[1756375744628,0.52969249,113010.0,113000.0,0.64711932]
[1756375745125,0.03623,113040.0,113030.0,0.24847774]
[1756375745326,0.05268,113050.0,113040.0,0.0884602]
[1756375745518,0.10743,113050.0,113040.0,1.27193222]
[1756375745722,0.10743,113050.0,113040.0,1.41168688]
[1756375745922,0.10743,113050.0,113040.0,1.33193222]
[1756375746426,0.13912,113050.0,113040.0,1.33193222]
[1756375746622,0.13912,113050.0,113040.0,0.96193222]
[1756375746826,0.13912,113050.0,113040.0,1.28193222]
[1756375748327,0.14012,113050.0,113040.0,1.28193222]
[1756375753233,0.12497,113050.0,113040.0,1.26534222]
[1756375756734,0.10048,113050.0,113040.0,1.24176222]
[1756375756930,0.10048,113050.0,113040.0,1.26534222]
[1756375757135,0.12237209,113050.0,113040.0,2.06982222]
[1756375757335,0.14686209,113050.0,113040.0,2.06982222]
[1756375758141,0.14686209,113050.0,113040.0,2.06978222]
[1756375759738,1.47512411,113050.0,113040.0,0.1458202]
[1756375760041,1.10845209,113050.0,113040.0,0.1551302]
[1756375760243,0.73614007,113050.0,113040.0,0.2052402]
[1756375760440,0.82051007,113050.0,113040.0,0.2052402]
[1756375760839,0.82055007,113050.0,113040.0,0.2052402]
[1756375764245,0.77285209,113050.0,113040.0,0.2052402]
[1756375765848,0.77285209,113050.0,113040.0,0.2288202]
[1756375766346,0.77285209,113050.0,113040.0,0.60113222]
[1756375771653,0.77285209,113050.0,113040.0,0.2288202]
[1756375771953,0.77285209,113050.0,113040.0,0.60113222]
[1756375775851,0.41205209,113050.0,113040.0,0.60113222]
[1756375776056,0.77285209,113050.0,113040.0,0.60113222]
[1756375784459,0.77285209,113050.0,113040.0,0.2288202]
[1756375787465,1.19147433,113050.0,113040.0,0.64744244]
[1756375789672,0.77285209,113050.0,113040.0,0.64744244]
[1756375789865,1.19147433,113050.0,113040.0,0.64744244]
[1756375793074,0.94147433,113050.0,113040.0,0.64744244]
[1756375793673,0.52285209,113050.0,113040.0,0.64744244]
[1756375793874,0.94147433,113050.0,113040.0,0.64744244]
[1756375800184,0.52285209,113050.0,113040.0,0.2288202]
[1756375800378,0.94147433,113050.0,113040.0,0.64744244]
[1756375802281,0.52285209,113050.0,113040.0,0.64744244]
[1756375802482,0.94147433,113050.0,113040.0,0.64744244]
[1756375803678,0.52285209,113050.0,113040.0,0.64744244]
[1756375804184,0.94147433,113050.0,113040.0,0.64744244]
[1756375806988,0.52285209,113050.0,113040.0,0.64744244]
[1756375807189,0.94147433,113050.0,113040.0,0.64744244]
[1756375807987,0.94147433,113050.0,113040.0,0.2288202]
[1756375808188,0.94147433,113050.0,113040.0,0.64744244]
[1756375808789,0.94147433,113050.0,113040.0,0.2288202]
[1756375808989,0.94147433,113050.0,113040.0,0.64744244]
[1756375810496,1.74785433,113050.0,113040.0,0.64744244]
[1756375813395,1.32923209,113050.0,113040.0,0.64744244]
[1756375813594,1.74785433,113050.0,113040.0,0.64744244]
[1756375818398,1.32923209,113050.0,113040.0,0.64744244]
[1756375818600,1.74785433,113050.0,113040.0,0.64744244]
[1756375819199,1.32923209,113050.0,113040.0,0.64744244]
[1756375821102,1.74785433,113050.0,113040.0,0.64744244]
[1756375821303,1.32923209,113050.0,113040.0,0.64744244]
[1756375821502,1.74785433,113050.0,113040.0,0.64744244]
[1756375822202,1.74785433,113050.0,113040.0,0.2288202]
[1756375822401,1.74785433,113050.0,113040.0,0.64744244]
[1756375824502,1.74846064,113050.0,113040.0,0.64744244]
[1756375825503,1.3298384,113050.0,113040.0,0.64744244]
[1756375825702,1.74846064,113050.0,113040.0,0.64744244]
[1756375826906,1.74846064,113050.0,113040.0,0.59196244]
[1756375827206,1.74846064,113050.0,113040.0,0.62358244]
[1756375827707,1.74846064,113050.0,113040.0,0.64700244]
[1756375838917,1.74846064,113050.0,113040.0,0.2283802]
[1756375839121,1.74846064,113050.0,113040.0,0.64700244]
[1756375840314,1.3298384,113050.0,113040.0,0.64700244]
[1756375840521,1.74846064,113050.0,113040.0,0.64700244]
[1756375843521,1.74846064,113050.0,113040.0,0.2283802]
[1756375843721,1.74846064,113050.0,113040.0,0.64700244]
[1756375847124,1.3298384,113050.0,113040.0,0.64700244]
[1756375847324,0.0446184,113050.0,113040.0,2.00642468]
[1756375847520,0.0446184,113050.0,113040.0,1.67642468]
[1756375847724,0.0446184,113050.0,113040.0,2.02642468]
[1756375847925,0.1297484,113050.0,113040.0,1.99642468]
[1756375848621,0.1297484,113050.0,113040.0,1.67642468]
[1756375853335,0.1297484,113050.0,113040.0,1.42642468]
[1756375854534,0.1297484,113050.0,113040.0,1.74642468]
[1756375854739,0.1297484,113050.0,113040.0,1.44642468]
[1756375854946,0.1297484,113050.0,113040.0,1.77642468]
[1756375855140,0.1297484,113050.0,113040.0,1.44642468]
[1756375855540,0.1297484,113050.0,113040.0,1.78642468]
[1756375855735,0.1297484,113050.0,113040.0,1.42642468]
[1756375856742,0.1297484,113050.0,113040.0,1.79642468]
[1756375857937,0.0235384,113050.0,113040.0,1.79642468]
[1756375859135,0.0235384,113050.0,113040.0,1.74642468]
[1756375859440,0.0235384,113050.0,113040.0,1.79642468]
[1756375862637,0.00104,113050.0,113040.0,2.04642468]
[1756375862946,0.37725,113070.0,113060.0,0.2308746]
[1756375863139,0.37725,113070.0,113060.0,2.23107908]
[1756375863140,0.39897087,113070.0,113060.0,2.23107908]
[1756375863340,0.03817087,113070.0,113060.0,2.17325684]
[1756375864146,0.04117087,113070.0,113060.0,2.17325684]
[1756375864344,0.02472087,113070.0,113060.0,2.59187908]
[1756375865245,0.02772087,113070.0,113060.0,2.59187908]
[1756375866642,0.006,113070.0,113060.0,2.59187908]
[1756375866844,0.006,113070.0,113060.0,2.84187908]
[1756375867142,0.47173,113100.0,113090.0,0.1908911]
[1756375867346,0.52595681,113100.0,113090.0,1.47043416]
[1756375867749,0.52595681,113100.0,113090.0,1.05181192]
[1756375867953,0.52595681,113100.0,113090.0,1.47043416]
[1756375868639,0.52595681,113100.0,113090.0,1.47039416]
[1756375869040,0.94957905,113100.0,113090.0,0.63522416]
[1756375869241,0.95457905,113100.0,113090.0,1.47131416]
[1756375869438,0.94957905,113100.0,113090.0,1.47031416]
[1756375869639,0.96027075,113100.0,113090.0,1.47031416]
[1756375869949,0.95527075,113100.0,113090.0,1.47031416]
[1756375870147,0.95827075,113100.0,113090.0,0.66711416]
[1756375871445,0.94957905,113100.0,113090.0,0.66711416]
[1756375873649,0.53095681,113100.0,113090.0,0.66711416]
[1756375873951,0.94957905,113100.0,113090.0,0.66711416]
[1756375877752,1.75241905,113100.0,113090.0,0.66711416]
[1756375877952,1.33379681,113100.0,113090.0,0.66711416]
[1756375878155,0.94957905,113100.0,113090.0,0.66711416]
[1756375878760,0.53095681,113100.0,113090.0,0.66711416]
[1756375878965,0.94957905,113100.0,113090.0,0.66711416]
[1756375879259,0.53095681,113100.0,113090.0,0.66711416]
[1756375879655,0.94957905,113100.0,113090.0,0.66711416]
[1756375880660,0.94957905,113100.0,113090.0,0.24849192]
[1756375880860,0.94957905,113100.0,113090.0,0.66711416]
[1756375883863,0.53095681,113100.0,113090.0,0.66711416]
[1756375884070,0.94957905,113100.0,113090.0,0.66711416]
[1756375884565,0.53095681,113100.0,113090.0,0.66711416]
[1756375884767,0.94957905,113100.0,113090.0,0.66711416]
[1756375887366,0.94957905,113100.0,113090.0,1.43686416]
[1756375887665,0.94957905,113100.0,113090.0,1.46975416]
[1756375888073,0.94957905,113100.0,113090.0,0.61050416]
[1756375888569,0.94957905,113100.0,113090.0,0.64339416]
[1756375888770,0.53095681,113100.0,113090.0,0.64339416]
[1756375888970,0.94957905,113100.0,113090.0,0.66711416]
[1756375889574,0.53095681,113100.0,113090.0,0.66711416]
[1756375889775,0.94957905,113100.0,113090.0,0.66711416]
[1756375892867,0.53095681,113100.0,113090.0,0.66711416]
[1756375893068,0.94957905,113100.0,113090.0,0.66711416]
[1756375893674,0.53095681,113100.0,113090.0,0.66711416]
[1756375893876,0.94957905,113100.0,113090.0,0.66711416]
[1756375896277,0.53095681,113100.0,113090.0,0.66711416]
[1756375896478,0.94957905,113100.0,113090.0,0.66711416]
[1756375897975,0.94957905,113100.0,113090.0,0.52208306]
[1756375898176,0.94957905,113100.0,113090.0,0.61050416]
[1756375898474,0.94957905,113100.0,113090.0,0.66788416]
[1756375898677,0.94957905,113100.0,113080.0,1.39616137]
[1756375898876,0.53013681,113100.0,113090.0,0.50704334]
[1756375899478,0.53013681,113100.0,113090.0,0.57318334]
[1756375899678,0.53013681,113100.0,113090.0,0.62561334]
[1756375899880,0.53013681,113100.0,113090.0,0.2069911]
[1756375900081,0.53013681,113100.0,113090.0,0.62561334]
[1756375900082,0.94875905,113100.0,113090.0,0.62561334]
[1756375900581,0.94875905,113100.0,113090.0,0.65011334]
[1756375900981,0.94575905,113100.0,113090.0,0.65011334]
[1756375901182,0.94775905,113100.0,113090.0,0.2314911]
[1756375901382,0.94775905,113100.0,113090.0,0.65011334]
[1756375901784,0.94575905,113100.0,113090.0,0.65011334]
[1756375902086,0.94875905,113100.0,113090.0,0.65011334]
[1756375904686,0.94875905,113100.0,113090.0,0.2314911]
[1756375904887,0.94875905,113100.0,113090.0,0.65011334]
[1756375907594,0.94875905,113100.0,113090.0,0.2314911]
[1756375907889,0.94875905,113100.0,113090.0,0.65011334]
[1756375910593,0.94875905,113100.0,113090.0,0.56169224]
[1756375910991,0.94875905,113100.0,113090.0,0.53719224]
[1756375911794,0.94875905,113100.0,113090.0,0.62561334]
[1756375912293,0.94875905,113100.0,113090.0,0.65011334]
[1756375915196,0.53013681,113100.0,113090.0,0.65011334]
[1756375915396,0.94875905,113100.0,113090.0,0.65011334]
[1756375915800,0.94974965,113100.0,113090.0,0.65011334]
[1756375920501,0.94974965,113100.0,113090.0,0.2314911]
[1756375920698,0.94974965,113100.0,113090.0,0.14307]
[1756375920898,0.94974965,113100.0,113090.0,0.56169224]
[1756375921095,0.14064,113090.0,113080.0,0.39760271]
[1756375921299,1.74512965,113090.0,113080.0,0.37310271]
[1756375921500,1.74512965,113090.0,113080.0,0.40598271]
[1756375922302,1.74512965,113090.0,113080.0,0.43048271]
[1756375922809,2.08512965,113090.0,113080.0,0.43048271]
[1756375923412,2.08712965,113090.0,113080.0,0.43048271]
[1756375923611,2.08712965,113090.0,113080.0,0.84910495]
[1756375923811,2.08812965,113090.0,113080.0,0.84910495]
[1756375924011,2.08812965,113090.0,113080.0,0.93753385]
[1756375924614,2.08812965,113090.0,113080.0,0.25091161]
[1756375925111,2.08812965,113090.0,113080.0,0.66953385]
[1756375925712,1.32950741,113090.0,113080.0,0.66953385]
[1756375925915,1.74812965,113090.0,113080.0,0.66953385]
[1756375927808,1.32950741,113090.0,113080.0,0.66953385]
[1756375928114,1.74812965,113090.0,113080.0,0.66953385]
[1756375928517,1.74812965,113090.0,113080.0,0.25091161]
[1756375928910,1.74812965,113090.0,113080.0,0.66953385]
[1756375929917,1.32950741,113090.0,113080.0,0.66953385]
[1756375930112,1.74812965,113090.0,113080.0,0.66953385]
[1756375931420,1.32950741,113090.0,113080.0,0.25091161]
[1756375931717,1.74812965,113090.0,113080.0,0.66953385]
[1756375937613,0.16657741,113090.0,113080.0,0.66953385]
[1756375937812,0.96897741,113090.0,113080.0,0.66953385]
[1756375942419,0.96897741,113090.0,113080.0,0.93753385]
[1756375944623,0.96897741,113090.0,113080.0,0.51891161]
[1756375944926,0.96897741,113090.0,113080.0,0.93753385]
[1756375946924,0.93662741,113090.0,113080.0,1.18753385]
[1756375947123,0.06346741,113090.0,113080.0,1.52753385]
[1756375947431,0.91096,113100.0,113090.0,0.1446713]
[1756375947631,0.16325814,113100.0,113090.0,1.77803354]
[1756375947930,0.16325814,113100.0,113090.0,1.46803354]
[1756375948430,0.16325814,113100.0,113090.0,1.44803354]
[1756375949431,0.16525814,113100.0,113090.0,1.44803354]
[1756375949626,0.16625814,113100.0,113090.0,1.44803354]
[1756375951226,0.16625814,113100.0,113090.0,1.2974113]
[1756375951431,0.16625814,113100.0,113090.0,1.71603354]
[1756375951629,0.16625814,113100.0,113090.0,0.4950513]
[1756375951830,0.58488038,113100.0,113090.0,0.91367354]
[1756375952024,0.58488038,113100.0,113090.0,0.4950513]
[1756375952232,0.16625814,113100.0,113090.0,0.91367354]
[1756375952432,0.16625814,113100.0,113090.0,0.4950513]
[1756375952735,0.16625814,113100.0,113090.0,0.91367354]
[1756375953936,0.58488038,113100.0,113090.0,0.91367354]
[1756375954237,0.16625814,113100.0,113090.0,0.91367354]
[1756375954434,0.58488038,113100.0,113090.0,0.91367354]
[1756375954735,0.16625814,113100.0,113090.0,0.91367354]
[1756375955433,0.16625814,113100.0,113090.0,0.5150513]
[1756375955634,0.16625814,113100.0,113090.0,0.93367354]
[1756375955836,0.06267814,113100.0,113090.0,0.93367354]
[1756375956135,0.04076814,113100.0,113090.0,0.93367354]
[1756375957137,0.02534814,113100.0,113090.0,1.35229578]
[1756375957341,0.02534814,113100.0,113090.0,1.67229578]
[1756375957927,0.02534814,113100.0,113090.0,1.64229578]
[1756375958540,0.02534814,113100.0,113090.0,1.62329578]
[1756375960737,0.02534814,113100.0,113090.0,1.20467354]
[1756375962342,0.08062814,113100.0,113090.0,1.20467354]
[1756375962541,0.02534814,113100.0,113090.0,1.20467354]
[1756375964441,0.02534814,113100.0,113090.0,0.7860513]
[1756375964644,0.02534814,113100.0,113090.0,1.20467354]
[1756375968343,0.02534814,113100.0,113090.0,1.69819354]
[1756375968344,0.11038814,113100.0,113090.0,1.69819354]
[1756375969436,0.11038814,113100.0,113090.0,2.06819354]
[1756375972350,0.02534814,113100.0,113090.0,2.06819354]
[1756375982252,0.02534814,113100.0,113090.0,2.48681578]
[1756375983051,0.02534814,113100.0,113090.0,2.06819354]
[1756375983955,0.02534814,113100.0,113090.0,2.48681578]
[1756375984258,0.02534814,113100.0,113090.0,2.46681578]
[1756375986746,0.02534814,113100.0,113090.0,2.04819354]
[1756375987152,0.02534814,113100.0,113090.0,2.46681578]
[1756375989361,0.02534814,113100.0,113090.0,1.6295713]
[1756375989656,0.02534814,113100.0,113090.0,2.46681578]
[1756375989853,0.02534814,113100.0,113090.0,2.04819354]
[1756375990354,0.02534814,113100.0,113090.0,1.6295713]
[1756375990554,0.02534814,113100.0,113090.0,2.04819354]
[1756375993454,0.00304,113100.0,113090.0,2.04819354]
[1756375993654,0.02523389,113100.0,113090.0,2.04819354]
[1756375999458,0.02523389,113100.0,113090.0,2.02886354]
[1756376001360,0.02523389,113100.0,113090.0,1.6102413]
[1756376001562,0.02523389,113100.0,113090.0,2.02886354]
[1756376003065,0.02523389,113100.0,113090.0,1.99520354]
[1756376003362,0.02523389,113100.0,113090.0,2.02886354]
[1756376004162,0.02523389,113100.0,113090.0,1.41086354]
[1756376006856,0.02523389,113100.0,113090.0,1.78086354]
[1756376008265,0.02523389,113100.0,113090.0,1.76086354]
[1756376008768,0.02523389,113100.0,113090.0,1.76154354]
[1756376009470,0.02523389,113100.0,113090.0,0.9929213]
[1756376009669,0.02523389,113100.0,113090.0,1.72154354]
[1756376009869,0.02523389,113100.0,113090.0,1.41154354]
[1756376010168,0.02523389,113100.0,113090.0,1.76154354]
[1756376010366,0.13408389,113100.0,113090.0,1.45202354]
[1756376010567,0.16816389,113100.0,113090.0,1.80202354]
[1756376014773,0.04174389,113100.0,113090.0,1.80202354]
[1756376016471,0.04174389,113100.0,113090.0,1.45194354]
[1756376017375,0.04174389,113100.0,113090.0,0.64794354]
[1756376017570,0.16861389,113100.0,113090.0,1.0333213]
[1756376017876,0.16861389,113100.0,113090.0,1.45194354]
[1756376019565,0.11634389,113100.0,113090.0,1.45194354]
[1756376020574,0.16861389,113100.0,113090.0,1.45194354]
[1756376022281,0.08364389,113100.0,113090.0,1.45194354]
[1756376022481,0.06443389,113100.0,113090.0,1.45194354]
[1756376023282,0.14940389,113100.0,113090.0,1.45194354]
[1756376023482,0.56802613,113100.0,113090.0,1.45194354]
[1756376023682,0.48305613,113100.0,113090.0,1.45194354]
[1756376023881,0.06443389,113100.0,113090.0,1.45194354]
[1756376025483,0.06443389,113100.0,113090.0,1.71994354]
[1756376025882,0.48305613,113100.0,113090.0,1.71994354]
[1756376026082,0.06443389,113100.0,113090.0,1.71994354]
[1756376029582,0.48305613,113100.0,113090.0,1.71994354]
[1756376029783,0.04174389,113100.0,113090.0,1.71994354]
[1756376030285,0.46036613,113100.0,113090.0,1.71994354]
[1756376032187,0.04174389,113100.0,113090.0,1.71994354]
[1756376037393,0.04174389,113100.0,113090.0,1.70114354]
[1756376039188,0.02523389,113100.0,113090.0,1.70114354]
[1756376039388,0.02523389,113100.0,113090.0,2.04114354]
[1756376039585,1.23470616,113110.0,113090.0,2.12956484]
[1756376039790,1.25667466,113110.0,113100.0,0.53321224]
[1756376040192,1.25667466,113110.0,113100.0,0.62162574]
[1756376040388,1.27176466,113110.0,113100.0,0.62162574]
[1756376040697,1.27376466,113110.0,113100.0,0.62162574]
[1756376040994,1.29751466,113110.0,113100.0,0.62162574]
[1756376041196,1.27376466,113110.0,113100.0,0.62162574]
[1756376041386,1.27476466,113110.0,113100.0,0.62162574]
[1756376041997,1.6933869,113110.0,113100.0,0.62162574]
[1756376042297,1.6933869,113110.0,113100.0,0.62229574]
[1756376042597,1.7191369,113110.0,113100.0,0.62229574]
[1756376042798,1.27676466,113110.0,113100.0,0.62229574]
[1756376042993,1.29945466,113110.0,113100.0,0.62229574]
[1756376043298,1.40363466,113110.0,113100.0,0.2036735]
[1756376043496,1.40363466,113110.0,113100.0,0.62229574]
[1756376044000,1.8222569,113110.0,113100.0,0.62229574]
[1756376044302,1.8222569,113110.0,113100.0,0.2036735]
[1756376044502,1.0189369,113110.0,113100.0,0.62229574]
[1756376045000,0.60031466,113110.0,113100.0,0.62229574]
[1756376045203,1.0189369,113110.0,113100.0,0.62229574]
[1756376046103,0.60031466,113110.0,113100.0,0.62229574]
[1756376046296,1.0189369,113110.0,113100.0,0.62229574]
[1756376046498,1.0189369,113110.0,113100.0,0.2036735]
[1756376047104,1.0189369,113110.0,113100.0,0.62229574]
[1756376047598,0.20681466,113110.0,113100.0,0.2036735]
[1756376047800,0.24151466,113110.0,113100.0,1.04091798]
[1756376048997,0.0647485,113110.0,113100.0,1.29091798]
[1756376049301,0.0420585,113110.0,113100.0,1.61091798]
[1756376050304,0.0269685,113110.0,113100.0,1.97171798]
[1756376051306,0.0269685,113110.0,113100.0,1.98045902]
[1756376051604,0.0239685,113110.0,113100.0,1.14321454]
[1756376051801,0.0249685,113110.0,113100.0,1.1344735]
[1756376052102,0.0249685,113110.0,113100.0,1.97171798]
[1756376052302,0.0249685,113110.0,113100.0,1.1344735]
[1756376052505,0.0486285,113110.0,113100.0,1.1344735]
[1756376052706,0.0486285,113110.0,113100.0,1.97171798]
[1756376053003,0.0249685,113110.0,113100.0,1.97171798]
[1756376053202,0.0239685,113110.0,113100.0,1.97171798]
[1756376055899,0.0476285,113110.0,113100.0,1.97171798]
[1756376056406,0.0476285,113110.0,113100.0,1.1344735]
[1756376056606,0.0476285,113110.0,113100.0,1.97171798]
[1756376056904,0.0239685,113110.0,113100.0,1.97171798]
[1756376058006,0.0239685,113110.0,113100.0,2.23971798]
[1756376058306,0.002,113110.0,113100.0,2.23971798]
[1756376059101,0.002,113110.0,113100.0,1.4024735]
[1756376059401,0.002,113110.0,113100.0,2.23971798]
[1756376060400,0.94595223,113110.0,113100.0,1.2770335]
[1756376060603,0.94595223,113110.0,113100.0,1.69565574]
[1756376060801,0.52732999,113110.0,113100.0,1.69565574]
[1756376061002,0.94595223,113110.0,113100.0,1.69565574]
[1756376061405,0.52732999,113110.0,113100.0,1.69565574]
[1756376061600,0.94595223,113110.0,113100.0,1.69565574]
[1756376062502,0.94595223,113110.0,113100.0,1.2770335]
[1756376062701,0.94595223,113110.0,113100.0,1.69565574]
[1756376063497,0.52732999,113110.0,113100.0,1.69565574]
[1756376063806,0.94595223,113110.0,113100.0,1.69565574]
[1756376064499,0.52732999,113110.0,113100.0,1.69565574]
[1756376064698,0.94595223,113110.0,113100.0,1.69565574]
[1756376066009,0.52732999,113110.0,113100.0,1.2770335]
[1756376066409,0.94595223,113110.0,113100.0,1.69565574]
[1756376070214,0.94595223,113110.0,113100.0,0.89029574]
[1756376071516,1.75139223,113110.0,113100.0,0.89029574]
[1756376071912,1.75139223,113110.0,113100.0,0.38326]
[1756376072216,2.32139223,113110.0,113100.0,0.34549]
[1756376072416,2.32139223,113110.0,113100.0,0.37944]
[1756376073009,2.32139223,113110.0,113100.0,0.37186]
[1756376075817,2.32139223,113110.0,113100.0,0.10386]
[1756376080120,2.32139223,113110.0,113100.0,0.06991]
[1756376080321,2.32139223,113110.0,113100.0,0.00067]
[1756376081823,2.68219223,113110.0,113100.0,0.00067]
[1756376083424,2.59567223,113110.0,113090.0,0.84048824]
[1756376083624,0.44649,113100.0,113090.0,1.10783824]
[1756376083926,0.88704223,113100.0,113090.0,1.10783824]
[1756376085228,0.88704223,113100.0,113090.0,1.10883824]
[1756376087425,0.94440223,113100.0,113090.0,0.690216]
[1756376087618,0.94440223,113100.0,113090.0,0.6902213]
[1756376087826,0.94440223,113100.0,113090.0,0.4222213]
[1756376088122,0.94440223,113100.0,113090.0,0.84084354]
[1756376094335,0.94440223,113100.0,113090.0,0.4222213]
[1756376094533,0.94440223,113100.0,113090.0,0.84084354]
[1756376095638,0.52577999,113100.0,113090.0,0.84084354]
[1756376095826,0.94440223,113100.0,113090.0,0.84084354]
[1756376096130,0.52577999,113100.0,113090.0,0.84084354]
[1756376096337,0.94440223,113100.0,113090.0,0.84084354]
[1756376097238,0.49089999,113100.0,113090.0,0.84084354]
[1756376097440,0.08309999,113100.0,113090.0,0.84084354]
[1756376098242,0.11797999,113100.0,113090.0,0.84084354]
[1756376099340,0.08309999,113100.0,113090.0,0.84084354]
[1756376099540,0.08309999,113100.0,113090.0,1.10884354]
[1756376099739,0.03797999,113100.0,113090.0,1.10884354]
[1756376101143,0.02192999,113100.0,113090.0,1.10884354]
[1756376101338,0.46841999,113110.0,113090.0,1.04339354]
[1756376101642,0.87577999,113110.0,113100.0,0.53142224]
[1756376103339,0.87577999,113110.0,113100.0,0.61983574]
[1756376103340,1.29440223,113110.0,113100.0,0.61983574]
[1756376104844,1.29540223,113110.0,113100.0,0.61983574]
[1756376105046,2.09944223,113110.0,113100.0,0.61983574]
[1756376105450,2.09944223,113110.0,113100.0,0.88783574]
[1756376105749,2.09976223,113110.0,113100.0,0.88783574]
[1756376105945,0.87677999,113110.0,113100.0,0.88783574]
[1756376106246,2.09968223,113110.0,113100.0,0.88783574]
[1756376106746,1.68105999,113110.0,113100.0,0.4692135]
[1756376106947,1.29540223,113110.0,113100.0,0.88783574]
[1756376107146,2.09968223,113110.0,113100.0,0.88783574]